[Event "*** Titled Tuesday Blitz"]
[Site "Chess.com"]
[Date "2020.05.26"]
[Round "10"]
[White "ChessQueen"]
[Black "ShahMatKanal"]
[Result "1/2-1/2"]
[WhiteElo "2612"]
[BlackElo "2475"]
[TimeControl "180+1"]
[EndTime "12:02:58 PDT"]
[Termination "Game drawn - insufficient material"]

1. e4 {[%clk 0:03:00.9]} 1... c5 {[%clk 0:02:57.9]} 2. c3 {[%clk 0:03:00.5]}
2... Nf6 {[%clk 0:02:56.2]} 3. e5 {[%clk 0:03:00.6]} 3... Nd5 {[%clk 0:02:56.4]}
4. Nf3 {[%clk 0:03:00.5]} 4... e6 {[%clk 0:02:53.6]} 5. d4 {[%clk 0:03:00.1]}
5... cxd4 {[%clk 0:02:49.4]} 6. cxd4 {[%clk 0:03:00.3]} 6... d6 {[%clk
0:02:49.6]} 7. Bc4 {[%clk 0:02:58.7]} 7... Be7 {[%clk 0:02:45.6]} 8. O-O {[%clk
0:02:56]} 8... O-O {[%clk 0:02:45.3]} 9. Nc3 {[%clk 0:02:52.9]} 9... Nxc3 {[%clk
0:02:40.1]} 10. bxc3 {[%clk 0:02:53.8]} 10... dxe5 {[%clk 0:02:38.3]} 11. Nxe5
{[%clk 0:02:53.1]} 11... Nd7 {[%clk 0:02:37.4]} 12. Nf3 {[%clk 0:02:46.4]} 12...
Qc7 {[%clk 0:02:24.9]} 13. Qe2 {[%clk 0:02:43.4]} 13... b6 {[%clk 0:02:07]} 14.
Bb2 {[%clk 0:02:37.7]} 14... Nf6 {[%clk 0:01:57.2]} 15. Bd3 {[%clk 0:02:35.4]}
15... Bb7 {[%clk 0:01:56]} 16. c4 {[%clk 0:02:23.1]} 16... Nh5 {[%clk
0:01:45.5]} 17. g3 {[%clk 0:02:13.6]} 17... Bf6 {[%clk 0:01:32]} 18. Rfe1 {[%clk
0:02:06.5]} 18... g6 {[%clk 0:01:24.1]} 19. Rac1 {[%clk 0:02:01.9]} 19... Rfd8
{[%clk 0:01:18.4]} 20. Be4 {[%clk 0:01:39.9]} 20... Bxe4 {[%clk 0:01:15.3]} 21.
Qxe4 {[%clk 0:01:40.8]} 21... Rac8 {[%clk 0:01:12]} 22. Ne5 {[%clk 0:01:38.8]}
22... Bxe5 {[%clk 0:00:59]} 23. Qxe5 {[%clk 0:01:38.9]} 23... Qxe5 {[%clk
0:00:58.5]} 24. Rxe5 {[%clk 0:01:39.8]} 24... Ng7 {[%clk 0:00:54.4]} 25. g4
{[%clk 0:01:39.1]} 25... f6 {[%clk 0:00:50.6]} 26. Re3 {[%clk 0:01:36.6]} 26...
Kf7 {[%clk 0:00:49.9]} 27. a4 {[%clk 0:01:32.3]} 27... h5 {[%clk 0:00:43.8]} 28.
h3 {[%clk 0:01:32]} 28... Rc6 {[%clk 0:00:40.5]} 29. Kg2 {[%clk 0:01:25.4]}
29... Rdc8 {[%clk 0:00:37.4]} 30. Rec3 {[%clk 0:01:25.2]} 30... hxg4 {[%clk
0:00:35.7]} 31. hxg4 {[%clk 0:01:24.9]} 31... Ne8 {[%clk 0:00:36.2]} 32. c5
{[%clk 0:01:23.8]} 32... bxc5 {[%clk 0:00:25.1]} 33. dxc5 {[%clk 0:01:22.3]}
33... Nc7 {[%clk 0:00:23.5]} 34. Rh3 {[%clk 0:01:22]} 34... e5 {[%clk 0:00:20]}
35. Rh7+ {[%clk 0:01:18.6]} 35... Ke6 {[%clk 0:00:20.4]} 36. Ba3 {[%clk
0:01:18.9]} 36... Nd5 {[%clk 0:00:19.8]} 37. Rxa7 {[%clk 0:01:18.2]} 37... Nf4+
{[%clk 0:00:19.3]} 38. Kf3 {[%clk 0:01:15.3]} 38... Rd8 {[%clk 0:00:18.6]} 39.
Rc3 {[%clk 0:01:15.2]} 39... f5 {[%clk 0:00:13.9]} 40. gxf5+ {[%clk 0:01:13.1]}
40... Kxf5 {[%clk 0:00:14.2]} 41. Rf7+ {[%clk 0:01:10.7]} 41... Ke6 {[%clk
0:00:14.5]} 42. Rxf4 {[%clk 0:01:10.1]} 42... exf4 {[%clk 0:00:14]} 43. Kxf4
{[%clk 0:01:11]} 43... Rd4+ {[%clk 0:00:13.9]} 44. Kg5 {[%clk 0:01:11.6]} 44...
Rxa4 {[%clk 0:00:13]} 45. Kxg6 {[%clk 0:01:11.7]} 45... Rg4+ {[%clk 0:00:10.2]}
46. Kh5 {[%clk 0:01:11.6]} 46... Rg1 {[%clk 0:00:10.1]} 47. Rg3 {[%clk
0:01:07.4]} 47... Rf1 {[%clk 0:00:04.9]} 48. Rg6+ {[%clk 0:00:55.7]} 48... Kd5
{[%clk 0:00:05]} 49. Rd6+ {[%clk 0:00:51.9]} 49... Rxd6 {[%clk 0:00:04.6]} 50.
cxd6 {[%clk 0:00:52.8]} 50... Rxf2 {[%clk 0:00:05]} 51. d7 {[%clk 0:00:53.3]}
51... Rh2+ {[%clk 0:00:03.5]} 52. Kg6 {[%clk 0:00:53.7]} 52... Rh8 {[%clk
0:00:03.4]} 53. Be7 {[%clk 0:00:53.9]} 53... Ke6 {[%clk 0:00:02.9]} 54. Bf6
{[%clk 0:00:54]} 54... Kxd7 {[%clk 0:00:02.7]} 55. Bxh8 {[%clk 0:00:54.2]}
1/2-1/2

[Event "*** Titled Tuesday Blitz"]
[Site "Chess.com"]
[Date "2020.05.26"]
[Round "10"]
[White "Roza_Idrisova"]
[Black "VladimirBugayev"]
[Result "1-0"]
[WhiteElo "2184"]
[BlackElo "2175"]
[TimeControl "180+1"]
[EndTime "12:02:58 PDT"]
[Termination "Roza_Idrisova won on time"]

1. d4 {[%clk 0:03:00.9]} 1... d5 {[%clk 0:02:59.4]} 2. Nf3 {[%clk 0:03:00.8]}
2... Nf6 {[%clk 0:02:58.2]} 3. Bf4 {[%clk 0:03:00.6]} 3... c5 {[%clk 0:02:57]}
4. c3 {[%clk 0:03:00.1]} 4... Nc6 {[%clk 0:02:56.8]} 5. e3 {[%clk 0:02:59.8]}
5... Bf5 {[%clk 0:02:55.3]} 6. Nbd2 {[%clk 0:02:59.4]} 6... Qb6 {[%clk 0:02:53]}
7. Qb3 {[%clk 0:02:58.8]} 7... c4 {[%clk 0:02:53]} 8. Qxb6 {[%clk 0:02:58.5]}
8... axb6 {[%clk 0:02:53.2]} 9. a3 {[%clk 0:02:58.5]} 9... h6 {[%clk 0:02:50.4]}
10. h3 {[%clk 0:02:57.5]} 10... b5 {[%clk 0:02:42.7]} 11. g4 {[%clk 0:02:56.3]}
11... Bg6 {[%clk 0:02:32.2]} 12. Rc1 {[%clk 0:02:53.9]} 12... e6 {[%clk
0:02:30.6]} 13. Bg2 {[%clk 0:02:53.3]} 13... O-O-O {[%clk 0:02:07.3]} 14. O-O
{[%clk 0:02:49.9]} 14... Bd3 {[%clk 0:01:57.1]} 15. Rfe1 {[%clk 0:02:49.3]}
15... g5 {[%clk 0:01:52]} 16. Bg3 {[%clk 0:02:48.5]} 16... Ne4 {[%clk
0:01:51.7]} 17. Nxe4 {[%clk 0:02:46.3]} 17... dxe4 {[%clk 0:01:51.3]} 18. Nd2
{[%clk 0:02:38]} 18... f5 {[%clk 0:01:49.6]} 19. Ra1 {[%clk 0:02:27.6]} 19... h5
{[%clk 0:01:46.2]} 20. gxf5 {[%clk 0:02:19.1]} 20... exf5 {[%clk 0:01:46.1]} 21.
f3 {[%clk 0:02:17.8]} 21... exf3 {[%clk 0:01:30.6]} 22. Bxf3 {[%clk 0:02:17.1]}
22... g4 {[%clk 0:01:30.3]} 23. Bg2 {[%clk 0:02:13.3]} 23... h4 {[%clk
0:01:29.4]} 24. Bf4 {[%clk 0:02:12.5]} 24... Bd6 {[%clk 0:01:22.2]} 25. Bxd6
{[%clk 0:01:56.5]} 25... Rxd6 {[%clk 0:01:21.6]} 26. e4 {[%clk 0:01:55]} 26...
fxe4 {[%clk 0:01:07.8]} 27. Nxe4 {[%clk 0:01:54.3]} 27... Rg6 {[%clk 0:01:07.7]}
28. Kh2 {[%clk 0:01:43]} 28... g3+ {[%clk 0:00:36.2]} 29. Kg1 {[%clk 0:01:41.5]}
29... Rf8 {[%clk 0:00:36.4]} 30. Rad1 {[%clk 0:01:19.2]} 30... Kc7 {[%clk
0:00:36]} 31. Rd2 {[%clk 0:01:17]} 31... Nd8 {[%clk 0:00:31]} 32. Nc5 {[%clk
0:01:13.1]} 32... Bf5 {[%clk 0:00:24.4]} 33. d5 {[%clk 0:01:00.4]} 33... b6
{[%clk 0:00:23.6]} 34. Ne4 {[%clk 0:00:56.4]} 34... Bxe4 {[%clk 0:00:21.1]} 35.
Rxe4 {[%clk 0:00:54.5]} 35... Rgf6 {[%clk 0:00:21.1]} 36. Rxh4 {[%clk
0:00:52.6]} 36... Rf2 {[%clk 0:00:18.9]} 37. Rhd4 {[%clk 0:00:50]} 37... Kd6
{[%clk 0:00:17.2]} 38. h4 {[%clk 0:00:41.9]} 38... R8f4 {[%clk 0:00:10]} 39.
Rxf4 {[%clk 0:00:22.4]} 39... Rxf4 {[%clk 0:00:06.9]} 40. Rd4 {[%clk 0:00:16]}
1-0

[Event "*** Titled Tuesday Blitz"]
[Site "Chess.com"]
[Date "2020.05.26"]
[Round "10"]
[White "Chessialist"]
[Black "1stSecond"]
[Result "0-1"]
[WhiteElo "2548"]
[BlackElo "2707"]
[TimeControl "180+1"]
[EndTime "12:02:59 PDT"]
[Termination "1stSecond won by resignation"]

1. e4 {[%clk 0:03:00.9]} 1... g6 {[%clk 0:02:54.3]} 2. h4 {[%clk 0:03:00.5]}
2... Bg7 {[%clk 0:02:53.3]} 3. h5 {[%clk 0:03:00.9]} 3... d5 {[%clk 0:02:52.9]}
4. exd5 {[%clk 0:03:00.4]} 4... Qxd5 {[%clk 0:02:53.8]} 5. Nc3 {[%clk
0:03:01.1]} 5... Qa5 {[%clk 0:02:53.4]} 6. Bc4 {[%clk 0:03:00.4]} 6... Nd7
{[%clk 0:02:47.9]} 7. Qe2 {[%clk 0:02:30.9]} 7... Ne5 {[%clk 0:02:34.3]} 8. Bb3
{[%clk 0:02:14.3]} 8... Bg4 {[%clk 0:02:33.1]} 9. f3 {[%clk 0:02:09.3]} 9... Bf5
{[%clk 0:02:29.2]} 10. d4 {[%clk 0:02:07.7]} 10... Nc6 {[%clk 0:02:27.1]} 11.
Be3 {[%clk 0:01:44.8]} 11... Nxd4 {[%clk 0:02:23.7]} 12. Bxd4 {[%clk 0:01:32.4]}
12... Bxd4 {[%clk 0:02:24.6]} 13. O-O-O {[%clk 0:01:33]} 13... Bxc3 {[%clk
0:01:41.3]} 14. bxc3 {[%clk 0:01:32.6]} 14... Qxc3 {[%clk 0:01:40.7]} 15. Kb1
{[%clk 0:01:17.3]} 15... Nf6 {[%clk 0:01:01.2]} 16. g4 {[%clk 0:01:15.8]} 16...
Bd7 {[%clk 0:00:43.9]} 17. hxg6 {[%clk 0:01:15.3]} 17... fxg6 {[%clk 0:00:41.1]}
18. Rd3 {[%clk 0:00:46.8]} 18... Qb4 {[%clk 0:00:38.1]} 19. Re3 {[%clk
0:00:43.6]} 19... O-O-O {[%clk 0:00:36.6]} 20. Rxe7 {[%clk 0:00:43.5]} 20... a5
{[%clk 0:00:28.8]} 21. Qe1 {[%clk 0:00:32.1]} 21... Qb6 {[%clk 0:00:28.2]} 22.
Qe3 {[%clk 0:00:32.2]} 22... c5 {[%clk 0:00:26]} 23. Kc1 {[%clk 0:00:22.7]}
23... a4 {[%clk 0:00:20.7]} 24. Bc4 {[%clk 0:00:20.8]} 24... Rhe8 {[%clk
0:00:21.1]} 25. Ne2 {[%clk 0:00:20.4]} 25... Rxe7 {[%clk 0:00:21.2]} 26. Qxe7
{[%clk 0:00:20.5]} 26... Re8 {[%clk 0:00:21.8]} 27. Qf7 {[%clk 0:00:20.4]} 27...
Qd6 {[%clk 0:00:15.6]} 28. Nc3 {[%clk 0:00:18.2]} 28... Qf4+ {[%clk 0:00:15.1]}
29. Kb1 {[%clk 0:00:16.8]} 29... Qd4 {[%clk 0:00:14.7]} 30. Nb5 {[%clk
0:00:09.5]} 30... Bxb5 {[%clk 0:00:13.8]} 31. Bxb5 {[%clk 0:00:10.4]} 31... Rd8
{[%clk 0:00:13.4]} 32. Bc4 {[%clk 0:00:08.8]} 32... a3 {[%clk 0:00:11.5]} 33.
Be6+ {[%clk 0:00:08.1]} 33... Kb8 {[%clk 0:00:11.3]} 34. c3 {[%clk 0:00:06.4]}
34... Qd3+ {[%clk 0:00:10.2]} 0-1

[Event "*** Titled Tuesday Blitz"]
[Site "Chess.com"]
[Date "2020.05.26"]
[Round "10"]
[White "nitpicker"]
[Black "chessfrendz"]
[Result "0-1"]
[WhiteElo "2285"]
[BlackElo "2399"]
[TimeControl "180+1"]
[EndTime "12:03:03 PDT"]
[Termination "chessfrendz won on time"]

1. d4 {[%clk 0:03:00.9]} 1... Nf6 {[%clk 0:02:59.2]} 2. c4 {[%clk 0:03:00.7]}
2... e6 {[%clk 0:02:59.7]} 3. g3 {[%clk 0:02:59.7]} 3... c5 {[%clk 0:02:58.9]}
4. d5 {[%clk 0:02:58.7]} 4... Bd6 {[%clk 0:02:57.3]} 5. dxe6 {[%clk 0:02:46.4]}
5... dxe6 {[%clk 0:02:56.1]} 6. Bg2 {[%clk 0:02:45.1]} 6... O-O {[%clk
0:02:55.6]} 7. Nf3 {[%clk 0:02:36.6]} 7... Nc6 {[%clk 0:02:55.2]} 8. O-O {[%clk
0:02:35.5]} 8... Qe7 {[%clk 0:02:50.7]} 9. a3 {[%clk 0:02:31.9]} 9... Rd8 {[%clk
0:02:50.2]} 10. Qc2 {[%clk 0:02:32.1]} 10... Nd4 {[%clk 0:02:47.7]} 11. Nxd4
{[%clk 0:02:31.3]} 11... cxd4 {[%clk 0:02:47.2]} 12. b4 {[%clk 0:02:26.7]} 12...
e5 {[%clk 0:02:46.6]} 13. Nd2 {[%clk 0:02:21.2]} 13... Be6 {[%clk 0:02:36.2]}
14. c5 {[%clk 0:02:08.2]} 14... Qc7 {[%clk 0:02:34.5]} 15. Qd3 {[%clk
0:02:05.4]} 15... Bf8 {[%clk 0:02:29.4]} 16. Bb2 {[%clk 0:02:05]} 16... Bd5
{[%clk 0:02:27.1]} 17. Ne4 {[%clk 0:02:00.8]} 17... Nxe4 {[%clk 0:02:26.1]} 18.
Bxe4 {[%clk 0:02:00.6]} 18... Bxe4 {[%clk 0:02:23.2]} 19. Qxe4 {[%clk
0:02:00.6]} 19... f6 {[%clk 0:02:22.7]} 20. e3 {[%clk 0:01:55.7]} 20... dxe3
{[%clk 0:02:18.1]} 21. Qxe3 {[%clk 0:01:55.8]} 21... Qc6 {[%clk 0:02:16.2]} 22.
Rad1 {[%clk 0:01:49.3]} 22... Be7 {[%clk 0:02:10]} 23. Qb3+ {[%clk 0:01:47.7]}
23... Kf8 {[%clk 0:02:09.1]} 24. f4 {[%clk 0:01:35.8]} 24... exf4 {[%clk
0:02:07.3]} 25. Rxf4 {[%clk 0:01:30.5]} 25... Rxd1+ {[%clk 0:02:02]} 26. Qxd1
{[%clk 0:01:30.2]} 26... Rd8 {[%clk 0:02:00.2]} 27. Rd4 {[%clk 0:01:30]} 27...
Rxd4 {[%clk 0:01:55.9]} 28. Qxd4 {[%clk 0:01:29.9]} 28... Qf3 {[%clk 0:01:54.6]}
29. Bc1 {[%clk 0:01:15.5]} 29... a6 {[%clk 0:01:47.4]} 30. Qe3 {[%clk
0:01:08.7]} 30... Qxe3+ {[%clk 0:01:45.4]} 31. Bxe3 {[%clk 0:01:07.8]} 31... Kf7
{[%clk 0:01:45.9]} 32. Kf1 {[%clk 0:01:02]} 32... Ke6 {[%clk 0:01:46]} 33. Ke2
{[%clk 0:01:02]} 33... Kd5 {[%clk 0:01:45.2]} 34. Kd3 {[%clk 0:01:02.4]} 34...
f5 {[%clk 0:01:42]} 35. Bf4 {[%clk 0:01:00.8]} 35... g5 {[%clk 0:01:41.3]} 36.
Bc7 {[%clk 0:01:00.1]} 36... Bf6 {[%clk 0:01:40.6]} 37. Bd6 {[%clk 0:00:53.7]}
37... g4 {[%clk 0:01:33.7]} 38. Bf8 {[%clk 0:00:51.6]} 38... Bb2 {[%clk
0:01:31.2]} 39. a4 {[%clk 0:00:48.3]} 39... Ba3 {[%clk 0:01:30.3]} 40. Kc3
{[%clk 0:00:40.3]} 40... Bc1 {[%clk 0:01:28.9]} 41. Kd3 {[%clk 0:00:37]} 41...
Bb2 {[%clk 0:01:26.9]} 42. b5 {[%clk 0:00:34.5]} 42... axb5 {[%clk 0:01:20.7]}
43. axb5 {[%clk 0:00:35.4]} 43... Be5 {[%clk 0:01:18.4]} 44. Be7 {[%clk
0:00:32.8]} 44... Bc7 {[%clk 0:01:05.4]} 45. Bf8 {[%clk 0:00:27.1]} 45... f4
{[%clk 0:01:03.8]} 46. b6 {[%clk 0:00:17.1]} 46... Bb8 {[%clk 0:01:01.3]} 47.
Ke2 {[%clk 0:00:11.4]} 47... fxg3 {[%clk 0:01:00]} 48. hxg3 {[%clk 0:00:11.2]}
48... Bxg3 {[%clk 0:01:00]} 49. Ke3 {[%clk 0:00:11.1]} 49... h5 {[%clk
0:00:57.2]} 50. Be7 {[%clk 0:00:09.4]} 50... h4 {[%clk 0:00:55.1]} 51. Bxh4
{[%clk 0:00:03.1]} 51... Bxh4 {[%clk 0:00:53.4]} 0-1

[Event "*** Titled Tuesday Blitz"]
[Site "Chess.com"]
[Date "2020.05.26"]
[Round "10"]
[White "MYMChessAcademy"]
[Black "Goryachkina"]
[Result "0-1"]
[WhiteElo "2449"]
[BlackElo "2593"]
[TimeControl "180+1"]
[EndTime "12:03:05 PDT"]
[Termination "Goryachkina won on time"]

1. e4 {[%clk 0:03:00.9]} 1... e6 {[%clk 0:02:59.4]} 2. d4 {[%clk 0:02:59.9]}
2... d5 {[%clk 0:02:59.6]} 3. Nc3 {[%clk 0:03:00.5]} 3... Bb4 {[%clk 0:02:58.8]}
4. e5 {[%clk 0:03:01.1]} 4... c5 {[%clk 0:02:58.7]} 5. a3 {[%clk 0:03:01.5]}
5... Ba5 {[%clk 0:02:58.8]} 6. b4 {[%clk 0:02:59.7]} 6... cxd4 {[%clk
0:02:58.6]} 7. bxa5 {[%clk 0:02:44.4]} 7... dxc3 {[%clk 0:02:55.2]} 8. Qg4
{[%clk 0:02:44.1]} 8... Kf8 {[%clk 0:02:46.4]} 9. Nf3 {[%clk 0:02:38.7]} 9...
Ne7 {[%clk 0:02:41.3]} 10. Bd3 {[%clk 0:02:36.9]} 10... Nbc6 {[%clk 0:02:39.8]}
11. O-O {[%clk 0:02:36.1]} 11... Ng6 {[%clk 0:02:35.8]} 12. Re1 {[%clk
0:02:34.8]} 12... Qxa5 {[%clk 0:02:06.1]} 13. h4 {[%clk 0:02:27]} 13... Qc7
{[%clk 0:01:46.8]} 14. Qg3 {[%clk 0:02:22.9]} 14... Nge7 {[%clk 0:01:40.2]} 15.
a4 {[%clk 0:02:21]} 15... a5 {[%clk 0:01:37.1]} 16. Ba3 {[%clk 0:02:19.7]} 16...
Nb4 {[%clk 0:01:37.1]} 17. h5 {[%clk 0:02:04.1]} 17... h6 {[%clk 0:01:36.2]} 18.
Nd4 {[%clk 0:01:52.4]} 18... Bd7 {[%clk 0:01:32.1]} 19. Qf3 {[%clk 0:01:23.9]}
19... Ke8 {[%clk 0:01:14]} 20. Nb5 {[%clk 0:01:12.1]} 20... Bxb5 {[%clk
0:01:11.7]} 21. Bxb5+ {[%clk 0:01:12.4]} 21... Kf8 {[%clk 0:01:10.8]} 22. Re2
{[%clk 0:00:53.4]} 22... Nf5 {[%clk 0:01:01.6]} 23. Qf4 {[%clk 0:00:48.7]} 23...
Qc5 {[%clk 0:00:59.1]} 24. Rd1 {[%clk 0:00:33]} 24... Kg8 {[%clk 0:00:48]} 25.
g4 {[%clk 0:00:32.2]} 25... Ne7 {[%clk 0:00:46.6]} 26. Kg2 {[%clk 0:00:28.3]}
26... Nec6 {[%clk 0:00:44.2]} 27. Re3 {[%clk 0:00:28.4]} 27... d4 {[%clk
0:00:38.3]} 28. Rf3 {[%clk 0:00:23.5]} 28... Rf8 {[%clk 0:00:36.3]} 29. g5
{[%clk 0:00:20.5]} 29... hxg5 {[%clk 0:00:33.7]} 30. Qxg5 {[%clk 0:00:21.4]}
30... Qxe5 {[%clk 0:00:32.9]} 31. Qg4 {[%clk 0:00:10.4]} 31... Qxh5 {[%clk
0:00:29.6]} 32. Qe4 {[%clk 0:00:04.6]} 32... Qh2+ {[%clk 0:00:26.2]} 33. Kf1
{[%clk 0:00:04.8]} 33... Rh4 {[%clk 0:00:19.1]} 34. Bxc6 {[%clk 0:00:02.8]}
34... Rxe4 {[%clk 0:00:17.4]} 35. Bxe4 {[%clk 0:00:03.7]} 35... Qh4 {[%clk
0:00:14.5]} 36. Bxb7 {[%clk 0:00:02.2]} 36... e5 {[%clk 0:00:14.3]} 37. Rg3
{[%clk 0:00:02.2]} 37... e4 {[%clk 0:00:13.3]} 38. Ke2 {[%clk 0:00:02.4]} 38...
d3+ {[%clk 0:00:12.9]} 39. cxd3 {[%clk 0:00:02]} 39... exd3+ {[%clk 0:00:13.3]}
40. Kf3 {[%clk 0:00:01.3]} 40... Qh5+ {[%clk 0:00:12.8]} 0-1

[Event "*** Titled Tuesday Blitz"]
[Site "Chess.com"]
[Date "2020.05.26"]
[Round "10"]
[White "ulkaf961"]
[Black "Tacticusbd"]
[Result "1-0"]
[WhiteElo "2240"]
[BlackElo "2423"]
[TimeControl "180+1"]
[EndTime "12:03:05 PDT"]
[Termination "ulkaf961 won on time"]

1. e4 {[%clk 0:03:00.9]} 1... e6 {[%clk 0:02:05.9]} 2. Qe2 {[%clk 0:02:56.6]}
2... c5 {[%clk 0:02:04.5]} 3. Nf3 {[%clk 0:02:56.2]} 3... Nc6 {[%clk 0:02:05]}
4. g3 {[%clk 0:02:56.8]} 4... g6 {[%clk 0:02:04.8]} 5. Bg2 {[%clk 0:02:57.2]}
5... Bg7 {[%clk 0:02:05.4]} 6. h4 {[%clk 0:02:57.2]} 6... h6 {[%clk 0:02:03.2]}
7. c3 {[%clk 0:02:50.3]} 7... Nge7 {[%clk 0:02:03.2]} 8. O-O {[%clk 0:02:49.5]}
8... d6 {[%clk 0:02:00.8]} 9. a3 {[%clk 0:02:42.4]} 9... Qc7 {[%clk 0:01:48.2]}
10. Rd1 {[%clk 0:02:38.2]} 10... e5 {[%clk 0:01:23.9]} 11. b4 {[%clk 0:02:36]}
11... Bg4 {[%clk 0:01:22.6]} 12. b5 {[%clk 0:02:27.4]} 12... Na5 {[%clk
0:01:12.9]} 13. a4 {[%clk 0:02:22.3]} 13... g5 {[%clk 0:01:08.2]} 14. hxg5
{[%clk 0:01:53.6]} 14... hxg5 {[%clk 0:01:04.9]} 15. d4 {[%clk 0:01:44.1]} 15...
Nb3 {[%clk 0:01:01.7]} 16. Ra2 {[%clk 0:01:42.7]} 16... Nxc1 {[%clk 0:01:01.3]}
17. Rxc1 {[%clk 0:01:42.8]} 17... cxd4 {[%clk 0:00:58.4]} 18. Rac2 {[%clk
0:01:42.9]} 18... d3 {[%clk 0:00:50.1]} 19. Qxd3 {[%clk 0:01:42.4]} 19... f6
{[%clk 0:00:49.6]} 20. c4 {[%clk 0:01:38.2]} 20... b6 {[%clk 0:00:49.4]} 21.
Nbd2 {[%clk 0:01:22.7]} 21... Ng6 {[%clk 0:00:48]} 22. Nb3 {[%clk 0:01:19.3]}
22... Bf8 {[%clk 0:00:46.4]} 23. Nh2 {[%clk 0:01:03.5]} 23... Be6 {[%clk
0:00:42.3]} 24. Nd2 {[%clk 0:01:01.4]} 24... Qh7 {[%clk 0:00:40.6]} 25. Ndf1
{[%clk 0:00:53.6]} 25... Rc8 {[%clk 0:00:31.4]} 26. a5 {[%clk 0:00:53]} 26...
Be7 {[%clk 0:00:29.7]} 27. axb6 {[%clk 0:00:50.6]} 27... axb6 {[%clk 0:00:28.2]}
28. Qe3 {[%clk 0:00:50.3]} 28... Rb8 {[%clk 0:00:24.3]} 29. Qa3 {[%clk
0:00:49.8]} 29... Kf7 {[%clk 0:00:19]} 30. Qf3 {[%clk 0:00:48.3]} 30... Nf8
{[%clk 0:00:10.8]} 31. Ng4 {[%clk 0:00:47.7]} 31... Nd7 {[%clk 0:00:10]} 32.
Nge3 {[%clk 0:00:45]} 32... Nc5 {[%clk 0:00:09]} 33. Nf5 {[%clk 0:00:40.6]}
33... g4 {[%clk 0:00:03.1]} 34. Qxg4 {[%clk 0:00:33.7]} 34... Rbg8 {[%clk
0:00:02.6]} 35. Qf3 {[%clk 0:00:23.5]} 35... Bf8 {[%clk 0:00:01.1]} 36. N5e3
{[%clk 0:00:17.6]} 1-0

[Event "*** Titled Tuesday Blitz"]
[Site "Chess.com"]
[Date "2020.05.26"]
[Round "10"]
[White "JTCoach"]
[Black "witcher8"]
[Result "1-0"]
[WhiteElo "2663"]
[BlackElo "2457"]
[TimeControl "180+1"]
[EndTime "12:03:07 PDT"]
[Termination "JTCoach won by resignation"]

1. e4 {[%clk 0:03:00.9]} 1... c6 {[%clk 0:02:32.7]} 2. d4 {[%clk 0:02:59.7]}
2... d5 {[%clk 0:02:32.2]} 3. exd5 {[%clk 0:03:00.4]} 3... cxd5 {[%clk
0:02:32.1]} 4. Bd3 {[%clk 0:03:01.1]} 4... Nf6 {[%clk 0:02:32]} 5. Bf4 {[%clk
0:02:59.1]} 5... Nc6 {[%clk 0:02:29.8]} 6. c3 {[%clk 0:02:58.9]} 6... Bg4 {[%clk
0:02:29.2]} 7. Qb3 {[%clk 0:02:58.3]} 7... Qd7 {[%clk 0:02:29.2]} 8. Nd2 {[%clk
0:02:56.7]} 8... e6 {[%clk 0:02:29.4]} 9. Ngf3 {[%clk 0:02:56.6]} 9... Bxf3
{[%clk 0:02:29.7]} 10. Nxf3 {[%clk 0:02:56.3]} 10... Bd6 {[%clk 0:02:30.6]} 11.
Bxd6 {[%clk 0:02:41.6]} 11... Qxd6 {[%clk 0:02:30.1]} 12. O-O {[%clk 0:02:42.3]}
12... O-O {[%clk 0:02:28.7]} 13. Rfe1 {[%clk 0:02:42.2]} 13... Rab8 {[%clk
0:02:27.6]} 14. Ne5 {[%clk 0:02:38.3]} 14... b5 {[%clk 0:02:10.2]} 15. a3 {[%clk
0:02:01.5]} 15... Qc7 {[%clk 0:01:56.8]} 16. Qd1 {[%clk 0:01:51]} 16... a5
{[%clk 0:01:49.9]} 17. Qd2 {[%clk 0:01:26.6]} 17... Nxe5 {[%clk 0:01:38.3]} 18.
dxe5 {[%clk 0:01:18.9]} 18... Nd7 {[%clk 0:01:38.7]} 19. Qf4 {[%clk 0:01:14.9]}
19... b4 {[%clk 0:01:37.1]} 20. cxb4 {[%clk 0:01:06.6]} 20... axb4 {[%clk
0:01:36.9]} 21. a4 {[%clk 0:01:07.2]} 21... b3 {[%clk 0:01:28.2]} 22. a5 {[%clk
0:01:01.1]} 22... Nc5 {[%clk 0:01:23.5]} 23. Bf1 {[%clk 0:00:58]} 23... Ra8
{[%clk 0:01:13.6]} 24. Qd2 {[%clk 0:00:42.3]} 24... Ne4 {[%clk 0:00:49.8]} 25.
Qb4 {[%clk 0:00:34.7]} 25... Rfb8 {[%clk 0:00:49.7]} 26. Qa4 {[%clk 0:00:18.4]}
26... Qc2 {[%clk 0:00:36.2]} 27. Re2 {[%clk 0:00:16.2]} 27... Qc5 {[%clk
0:00:35.2]} 28. a6 {[%clk 0:00:15.3]} 28... g6 {[%clk 0:00:27]} 29. g3 {[%clk
0:00:11.1]} 29... Rb6 {[%clk 0:00:24.6]} 30. Re3 {[%clk 0:00:09.3]} 30... Qc2
{[%clk 0:00:17.6]} 31. Re2 {[%clk 0:00:09.5]} 31... Qc4 {[%clk 0:00:11.3]} 32.
Qxc4 {[%clk 0:00:08.8]} 32... dxc4 {[%clk 0:00:12.2]} 33. Rxe4 {[%clk 0:00:09]}
33... c3 {[%clk 0:00:11.1]} 34. bxc3 {[%clk 0:00:09.3]} 34... b2 {[%clk
0:00:11.6]} 35. Rb1 {[%clk 0:00:09.9]} 35... Rc8 {[%clk 0:00:09.2]} 36. Re2
{[%clk 0:00:09.8]} 36... Rxa6 {[%clk 0:00:06.6]} 37. Rexb2 {[%clk 0:00:09.9]}
37... Ra3 {[%clk 0:00:07.1]} 38. c4 {[%clk 0:00:08.5]} 38... Kg7 {[%clk
0:00:06.8]} 39. Rc1 {[%clk 0:00:08.5]} 39... Rc5 {[%clk 0:00:06.7]} 40. Rb5
{[%clk 0:00:08.3]} 1-0